bitfinex-derivatives/quotes_ETHF0:USTF0_20240927
["timestamp","ask_amount","ask_price","bid_price","bid_amount"]
[1727438395117,4.60365929,2652.6,2652.5,3.42192813]
[1727438400527,7.21942,2652.6,2652.5,0.0283]
[1727438400715,15.79951632,2652.6,2652.2,3.2078]
[1727438400908,1.49,2652.3,2652.2,3.2078]
[1727438401632,1.86693,2652.3,2652.2,3.2078]
[1727438401827,1.49,2652.3,2652.2,3.2078]
[1727438402214,1.49,2652.3,2652.2,3.58475]
[1727438402414,2.4709409,2652.3,2652.2,3.58475]
[1727438402620,2.47069825,2652.4,2652.2,3.2078]
[1727438402818,2.47069825,2652.4,2652.3,0.37693]
[1727438403724,3.81038332,2652.5,2652.4,0.37692]
[1727438403916,3.81038332,2652.5,2652.3,5.52167171]
[1727438403917,3.81038332,2652.5,2652.3,4.40859171]
[1727438404114,3.81038332,2652.5,2652.3,4.03167171]
[1727438404115,1.49,2652.4,2652.3,4.03167171]
[1727438404315,1.49,2652.4,2652.2,3.2078]
[1727438404316,3.96038332,2652.4,2652.2,3.2078]
[1727438404630,0.6984,2652.3,2652.2,3.58475]
[1727438404925,2.83,2652.5,2652.2,4.22914]
[1727438405222,4.65878332,2652.4,2652.2,3.2078]
[1727438405420,2.47025445,2652.3,2652.2,3.2078]
[1727438405624,2.47020697,2652.3,2652.2,3.2078]
[1727438406019,2.47025857,2652.3,2652.2,3.2078]
[1727438407126,2.56532,2652.4,2652.2,3.2078]
[1727438407127,2.1884,2652.4,2652.2,3.2078]
[1727438407314,2.46979553,2652.3,2652.2,3.2078]
[1727438408327,4.14733,2652.3,2651.8,0.37699]
[1727438408527,1.49,2652.0,2651.8,0.37699]
[1727438408729,1.9763,2651.9,2651.8,4.5262211]
[1727438410620,1.9763,2651.9,2651.8,4.1492311]
[1727438410918,0.6498,2651.9,2651.8,4.5262311]
[1727438411119,0.6922,2652.1,2651.9,0.37698]
[1727438411327,2.8753,2652.2,2652.0,0.37697]
[1727438411328,0.6918,2652.2,2652.0,0.37697]
[1727438411643,0.6918,2652.2,2652.0,4.80088889]
[1727438411929,0.6918,2652.2,2652.0,5.17785889]
[1727438412318,0.6918,2652.2,2652.1,0.37696]
[1727438412517,0.6918,2652.2,2652.0,5.17785889]
[1727438412729,3.85476571,2652.4,2652.1,4.12265026]
[1727438412918,0.6918,2652.6,2652.2,4.6978]
[1727438413226,1.3246,2652.6,2652.3,4.49957026]
[1727438413427,1.3246,2652.6,2652.3,4.12265026]
[1727438413930,1.3246,2652.6,2652.3,4.49958026]
[1727438414125,1.3246,2652.6,2652.3,4.12265026]
[1727438414524,2.8146,2652.6,2652.3,4.12265026]
[1727438414930,2.8146,2652.6,2652.3,4.49958026]
[1727438415633,2.8146,2652.6,2652.4,0.37692]
[1727438415839,1.3246,2652.6,2652.4,0.37692]
[1727438416028,1.3246,2652.6,2652.5,4.35058641]
[1727438419633,1.00827,2652.8,2652.5,8.12018641]
[1727438419933,5.67686571,2652.9,2652.5,4.72748641]
[1727438420129,1.86686,2652.8,2652.5,4.35058641]
[1727438420433,1.49,2652.6,2652.5,4.35058641]
[1727438420831,2.0437,2652.7,2652.5,4.35058641]
[1727438421239,1.3739,2652.7,2652.5,4.72748641]
[1727438422036,5.67686571,2652.9,2652.5,4.72748641]
[1727438422037,7.16686571,2652.9,2652.6,0.37689]
[1727438422233,7.82836571,2652.9,2652.6,0.48529]
[1727438422443,8.20521571,2652.9,2652.6,0.1084]
[1727438423625,8.20521571,2652.9,2652.6,0.48529]
[1727438423838,8.20521571,2652.9,2652.6,0.1084]
[1727438424138,2.1515,2652.9,2652.7,4.39872568]
[1727438424388,2.1515,2652.9,2652.7,4.02185568]
[1727438424635,2.1515,2652.9,2652.8,0.37686]
[1727438425333,2.52835,2652.9,2652.7,4.02185568]
[1727438425739,2.52835,2652.9,2652.7,0.37687]
[1727438425929,1.03835,2652.9,2652.8,4.16746222]
[1727438426128,4.99741571,2652.9,2652.8,4.16746222]
[1727438426442,2.1515,2652.9,2652.8,0.37686]
[1727438428840,2.52835,2652.9,2652.8,0.37686]
[1727438429340,2.1515,2652.9,2652.8,0.37686]
[1727438429742,2.52835,2652.9,2652.7,0.37687]
[1727438429938,4.99741571,2652.9,2652.7,0.37687]
[1727438430140,4.99742571,2652.9,2652.7,0.37687]
[1727438430538,4.99742571,2652.9,2652.6,4.36620363]
[1727438431139,0.6615,2652.9,2652.8,0.37686]
[1727438431941,0.6615,2652.9,2652.7,0.37687]
[1727438432139,2.52836,2652.9,2652.7,0.37687]
[1727438433445,2.1515,2652.9,2652.7,0.37687]
[1727438433845,2.52835,2652.9,2652.6,4.74308363]
[1727438434536,4.99741571,2652.9,2652.6,4.74308363]
[1727438434737,2.52835,2652.9,2652.6,4.74308363]
[1727438434940,4.99741571,2652.9,2652.6,4.74308363]
[1727438435147,2.52835,2652.9,2652.6,4.74308363]
[1727438435943,2.1515,2652.9,2652.7,0.37687]
[1727438436148,0.6615,2652.9,2652.7,0.37687]
[1727438436647,1.03835,2652.9,2652.7,0.37687]
[1727438437249,1.03835,2652.9,2652.6,4.77139363]
[1727438437751,1.03835,2652.9,2652.6,4.77138363]
[1727438438344,1.03835,2652.9,2652.7,0.37686]
[1727438438345,0.6615,2652.9,2652.7,0.37686]
[1727438438655,0.6615,2652.9,2652.8,0.37686]
[1727438438852,0.6615,2652.9,2652.7,0.37686]
[1727438439043,1.03835,2652.9,2652.6,4.77138363]
[1727438441850,1.03835,2652.9,2652.6,7.97918363]
[1727438442454,0.37686,2652.8,2652.6,7.97918363]
[1727438442649,0.6521,2652.7,2652.6,7.97918363]
[1727438444555,0.6521,2652.7,2652.6,7.60230363]
[1727438444757,0.6521,2652.7,2652.6,7.97919363]
[1727438445161,1.03835,2652.9,2652.6,7.97919363]
[1727438445552,1.03835,2652.9,2652.6,7.60230363]
[1727438446654,1.03835,2652.9,2652.6,4.39450363]
[1727438446853,1.03835,2652.9,2652.6,7.60230363]
[1727438447256,2.1515,2652.9,2652.6,7.60230363]
[1727438447661,2.52836,2652.9,2652.6,7.60230363]
[1727438448360,2.52835,2652.9,2652.6,7.60230363]
[1727438449061,2.1515,2652.9,2652.6,7.60230363]
[1727438449257,2.1515,2652.9,2652.6,7.57400363]
[1727438449258,2.52835,2652.9,2652.6,7.57400363]
[1727438449458,2.52835,2652.9,2652.6,7.95089363]
[1727438450155,0.37687,2652.8,2652.6,7.57400363]
[1727438450359,2.52836,2652.9,2652.6,7.57400363]
[1727438450556,2.52836,2652.9,2652.6,7.95088363]
[1727438450763,2.52836,2652.9,2652.6,7.57400363]
[1727438451155,2.52836,2652.9,2652.6,7.95089363]
[1727438454259,2.52836,2652.9,2652.6,7.57400363]
[1727438454558,4.99742571,2652.9,2652.6,7.57400363]
[1727438454760,2.52836,2652.9,2652.6,7.57400363]
[1727438455156,4.99742571,2652.9,2652.6,7.57400363]
[1727438455566,4.62056571,2652.9,2652.6,7.95088363]
[1727438455769,4.99741571,2652.9,2652.6,7.95088363]
[1727438455961,2.52835,2652.9,2652.6,7.95088363]
[1727438456365,4.99741571,2652.9,2652.6,7.57400363]
[1727438456572,4.99741571,2652.9,2652.6,7.95089363]
[1727438457068,4.99741571,2652.9,2652.7,0.37687]
[1727438457069,4.62056571,2652.9,2652.7,0.37687]
[1727438457271,3.13056571,2652.9,2652.6,7.95088363]
[1727438457470,3.13056571,2652.9,2652.8,4.06890386]
[1727438457669,3.13056571,2652.9,2652.7,4.30085675]
[1727438458062,3.13056571,2652.9,2652.6,3.58468]
[1727438458264,2.46906571,2652.8,2652.7,4.30085675]
[1727438458865,3.13056571,2652.9,2652.7,4.30085675]
[1727438459067,2.46906571,2652.8,2652.7,4.30085675]
[1727438461275,2.46906571,2652.8,2652.7,4.67773675]
[1727438461474,2.46906571,2652.8,2652.7,4.30085675]
[1727438462063,2.46906571,2652.8,2652.7,4.67773675]
[1727438462570,2.46906571,2652.8,2652.7,4.30085675]
[1727438464775,2.46906571,2652.8,2652.7,4.67773675]
[1727438465171,2.46906571,2652.8,2652.7,4.30085675]
[1727438465574,2.46906571,2652.8,2652.7,4.67773675]
[1727438466573,2.46906571,2652.8,2652.7,4.30085675]
[1727438467482,2.46906571,2652.8,2652.7,4.67773675]
[1727438468475,2.46906571,2652.8,2652.7,4.30085675]
[1727438469379,2.46906571,2652.8,2652.7,6.29773675]
[1727438469582,0.6615,2652.9,2652.8,0.37686]
[1727438469778,3.13398766,2652.9,2652.8,0.37686]
[1727438469983,3.13398766,2652.9,2652.8,4.37413636]
[1727438471476,2.95698632,2653.4,2652.8,15.31187519]
[1727438471693,4.41882874,2653.7,2653.5,0.37676]
[1727438471694,0.6099,2653.6,2653.5,0.37676]
[1727438471891,1.233,2653.6,2653.5,2.05799118]
[1727438472085,1.233,2653.6,2653.5,5.60237856]
[1727438472392,1.233,2653.6,2653.5,4.11237856]
[1727438473389,1.233,2653.6,2653.5,4.48913856]
[1727438474000,1.233,2653.6,2653.5,5.97913856]
[1727438476498,1.233,2653.6,2653.5,9.74793856]
[1727438477692,1.233,2653.6,2653.5,5.60237856]
[1727438478095,1.233,2653.6,2653.5,5.97913856]
[1727438478298,1.233,2653.6,2653.5,9.74793856]
[1727438478497,1.233,2653.6,2653.5,10.04551451]
[1727438480899,0.37665,2654.3,2653.9,0.37669]
[1727438481106,1.2426,2654.1,2654.0,0.37669]
[1727438481306,1.2426,2654.1,2654.0,4.72440911]
[1727438481495,1.2426,2654.1,2654.0,6.21440911]
[1727438481699,1.2426,2654.1,2654.0,5.83771911]
[1727438482607,1.2426,2654.1,2654.0,6.21440911]
[1727438483503,1.2426,2654.1,2654.0,5.83771911]
[1727438485508,1.2426,2654.1,2654.0,4.34771911]
[1727438485706,1.2426,2654.1,2654.0,5.33971911]
[1727438487203,1.2426,2654.1,2654.0,5.71640911]
[1727438487401,1.2426,2654.1,2654.0,5.33971911]
[1727438488111,1.61928,2654.1,2654.0,5.33971911]
[1727438488408,1.2426,2654.1,2654.0,5.71640911]
[1727438488604,1.2426,2654.1,2654.0,5.33971911]
[1727438492807,1.2426,2654.1,2654.0,10.41420911]
[1727438493408,0.6282,2654.1,2654.0,10.41420911]
[1727438494103,0.6282,2654.1,2654.0,7.20640911]
[1727438494304,0.6282,2654.1,2654.0,10.41420911]
[1727438495810,0.6122,2654.3,2654.2,0.37666]
[1727438496104,0.6122,2654.3,2654.2,1.86666]
[1727438496410,0.6122,2654.3,2654.2,6.2027371]
[1727438496598,1.2,2654.4,2654.3,0.37665]
[1727438496905,1.2,2654.4,2654.3,5.91569122]
[1727438498205,0.6261,2654.6,2654.4,0.37663]
[1727438498404,0.6261,2654.6,2654.5,1.49]
[1727438498610,0.6261,2654.6,2654.5,5.43008427]
[1727438498802,0.6261,2654.6,2654.5,5.80670427]
[1727438499412,0.6261,2654.6,2654.5,5.43008427]
[1727438499607,0.6261,2654.6,2654.5,5.80670427]
[1727438500106,0.6261,2654.6,2654.5,5.43008427]
[1727438500504,0.6261,2654.6,2654.5,5.80670427]
[1727438501012,0.6261,2654.6,2654.5,5.43008427]
[1727438501401,0.6261,2654.6,2654.4,0.992]
[1727438501805,1.00271,2654.6,2654.4,5.16323754]
[1727438502008,1.00271,2654.6,2654.4,4.17123754]
[1727438502209,0.6261,2654.6,2654.4,4.17123754]
[1727438502412,1.00271,2654.6,2654.4,4.17123754]
[1727438502906,1.00271,2654.6,2654.3,4.1998]
[1727438502907,0.37663,2654.4,2654.3,3.2078]
[1727438505013,0.37663,2654.4,2654.1,1.36868]
[1727438505412,0.37663,2654.4,2654.2,3.92542058]
[1727438505910,1.49,2654.5,2654.2,3.92542058]
[1727438506114,0.37664,2654.4,2654.2,3.92542058]
[1727438506917,0.37665,2654.3,2654.2,3.92542058]
[1727438507111,0.37668,2654.1,2654.0,0.992]
[1727438507308,0.37669,2654.0,2653.9,3.2078]
[1727438508910,0.37669,2654.0,2653.8,2.85872]
[1727438509216,0.37669,2654.0,2653.9,3.97143475]
[1727438509614,0.37668,2654.1,2653.9,3.97143475]
[1727438509813,3.4071,2654.2,2653.9,3.97143475]
[1727438510009,0.37669,2654.0,2653.9,3.97143475]
[1727438510315,0.37669,2654.0,2653.7,3.2078]
[1727438510316,1.49,2654.0,2653.4,5.49977]
[1727438510532,1.49,2653.8,2653.4,5.49977]
[1727438510708,0.37675,2653.6,2653.4,0.992]
[1727438511007,0.37675,2653.6,2653.1,1.36881]
[1727438511008,0.37678,2653.4,2653.1,1.36881]
[1727438511208,0.37679,2653.3,2653.0,15.43762]
[1727438511511,2.29161,2653.2,2653.1,4.23793268]
[1727438512712,1.9148,2653.2,2653.1,4.23793268]
[1727438513119,2.2916,2653.2,2653.1,4.23793268]
[1727438514511,2.2916,2653.2,2652.9,0.37685]
[1727438514512,6.0604,2653.2,2652.9,0.37685]
[1727438514715,2.2916,2653.2,2652.9,0.37685]
[1727438515316,3.7816,2653.2,2652.9,0.37685]
[1727438515512,0.37682,2653.1,2652.7,2.85886]
[1727438515816,1.49,2653.0,2652.7,4.96548221]
[1727438516016,2.29161,2653.2,2652.8,1.86686]
[1727438516617,1.9148,2653.2,2653.1,1.86682]
[1727438516817,1.2524,2653.2,2653.1,1.86682]
[1727438517121,1.2524,2653.2,2653.1,5.94583345]
[1727438518222,0.6412,2653.2,2653.1,5.94583345]
[1727438518413,0.6412,2653.2,2653.1,7.68583345]
[1727438520722,0.6412,2653.2,2653.1,7.30901345]
[1727438520920,0.6412,2653.2,2653.1,4.07901345]
[1727438521416,0.6412,2653.2,2653.1,0.37682]
[1727438521616,0.6412,2653.2,2653.1,4.30187119]
[1727438521617,1.018,2653.2,2653.1,4.30187119]
[1727438522126,0.37683,2653.1,2652.8,1.36886]
[1727438522332,0.37683,2653.0,2652.8,1.36886]
[1727438522529,0.37683,2653.0,2652.9,4.27205657]
[1727438523030,1.64603,2653.1,2652.9,4.27205657]
[1727438523624,0.37683,2653.0,2652.9,4.27205657]
[1727438524427,1.2692,2653.1,2652.8,4.0983207]
[1727438524428,0.37686,2652.9,2652.8,4.0983207]
[1727438524619,0.37687,2652.8,2652.6,3.2078]
[1727438524828,0.6423,2652.7,2652.6,3.2078]
[1727438525126,0.6423,2652.7,2652.6,7.14625942]
[1727438527128,0.6423,2652.7,2652.6,7.52314942]
[1727438527525,1.2692,2653.1,2652.9,0.37684]
[1727438527827,0.6087,2653.3,2653.0,10.48498946]
[1727438528018,0.6087,2653.3,2653.2,0.3768]
[1727438528820,0.6087,2653.3,2653.2,3.7688]
[1727438529028,0.6087,2653.3,2653.2,8.07765322]
[1727438530025,0.6087,2653.3,2653.2,3.93205322]
[1727438530224,0.6087,2653.3,2653.2,4.30885322]
[1727438531423,0.6087,2653.3,2653.2,8.07765322]
[1727438532124,0.6207,2653.5,2653.2,10.93085322]
[1727438532324,3.2078,2653.6,2653.4,0.37677]
[1727438532628,3.2078,2653.6,2653.5,3.97404904]
[1727438532629,3.58455,2653.6,2653.5,3.97404904]
[1727438533016,3.58455,2653.6,2653.4,0.37678]
[1727438533527,3.58455,2653.6,2653.5,4.01045083]
[1727438534232,0.6293,2653.7,2653.5,4.01045083]
[1727438534430,0.6293,2653.7,2653.6,0.37675]
[1727438535321,1.00603,2653.7,2653.5,7.61720083]
[1727438535733,0.6293,2653.7,2653.5,7.24045083]
[1727438536031,1.00604,2653.7,2653.5,7.61721083]
[1727438536233,0.6293,2653.7,2653.6,0.37675]
[1727438537437,1.00604,2653.7,2653.5,7.61720083]
[1727438537824,0.6293,2653.7,2653.6,0.37675]
[1727438539523,1.00603,2653.7,2653.6,0.37675]
[1727438539722,0.6293,2653.7,2653.6,0.37675]
[1727438540326,0.6293,2653.7,2653.6,1.86675]
[1727438541434,4.14948,2654.2,2653.8,0.37672]
[1727438541634,0.6302,2654.0,2653.9,1.86669]
[1727438542122,1.00689,2654.0,2653.9,1.86669]
[1727438542726,1.00689,2654.0,2653.9,6.1285013]
[1727438542727,0.6302,2654.0,2653.9,6.1285013]
[1727438543133,0.6148,2654.1,2654.0,0.37669]
[1727438543327,1.245,2654.4,2654.3,0.37665]
[1727438543527,1.245,2654.4,2654.3,1.86665]
[1727438543727,1.245,2654.4,2654.3,1.49]
[1727438544339,1.245,2654.4,2654.1,3.871]
[1727438544537,1.245,2654.4,2654.2,0.37666]
[1727438544737,1.245,2654.4,2654.2,4.49120596]
[1727438545433,1.245,2654.4,2654.3,0.37665]
[1727438546340,1.62164,2654.4,2654.2,4.49119596]
[1727438546635,1.62164,2654.4,2654.2,4.11454596]
[1727438547338,0.37665,2654.3,2654.2,4.11454596]
[1727438553539,0.37665,2654.3,2654.2,3.15314596]
[1727438553540,2.25991,2654.3,2654.2,3.15314596]
[1727438553749,13.93883,2654.3,2653.6,3.6478]
[1727438554043,0.37673,2653.8,2653.7,4.04019759]
[1727438554441,0.37673,2653.8,2653.6,3.58455]
[1727438554743,0.37671,2653.9,2653.7,0.37673]
[1727438555442,0.37673,2653.8,2653.6,3.58454]
[1727438555642,0.37673,2653.7,2653.6,3.2078]
[1727438556248,0.37673,2653.8,2653.6,3.58455]
[1727438556449,0.37673,2653.7,2653.6,3.2078]
[1727438559043,0.37673,2653.7,2653.5,0.6556]
[1727438559438,0.37673,2653.7,2653.6,4.26838716]
[1727438560249,0.37673,2653.8,2653.6,4.26838716]
[1727438561241,1.2568,2653.9,2653.6,4.64511716]
[1727438561449,0.37672,2653.8,2653.6,4.64511716]
[1727438561652,0.37672,2653.8,2653.6,4.26838716]
[1727438562345,0.37672,2653.8,2653.6,4.64512716]
[1727438563146,1.2568,2653.9,2653.8,0.37672]
[1727438564051,0.9792,2654.0,2653.8,0.37672]
[1727438564353,0.9792,2654.0,2653.9,0.3767]
[1727438564354,0.6025,2654.0,2653.9,0.3767]
[1727438564547,0.6025,2654.0,2653.9,4.52066148]
[1727438564854,0.97919,2654.0,2653.9,4.14396148]
[1727438565345,0.97919,2654.0,2653.9,4.75256148]
[1727438565851,3.67926414,2654.2,2654.1,0.37668]
[1727438566047,0.5775,2654.3,2654.2,0.37666]
[1727438566254,0.95415,2654.3,2654.2,0.37666]
[1727438566448,0.95415,2654.3,2654.1,5.33162624]
[1727438566851,0.37666,2654.2,2654.1,5.33162624]
[1727438567153,0.95416,2654.3,2654.1,5.33163624]
[1727438567551,0.5775,2654.3,2654.1,4.95496624]
[1727438567755,0.95416,2654.3,2654.1,5.33164624]
[1727438568457,0.5775,2654.3,2654.2,0.37666]
[1727438568857,0.95415,2654.3,2654.1,5.33163624]
[1727438569149,0.37664,2654.4,2654.2,4.42474673]
[1727438570057,3.63126414,2654.5,2654.2,4.42474673]
[1727438570256,0.37664,2654.4,2654.2,4.42474673]
[1727438571053,0.37664,2654.4,2654.2,4.04808673]
[1727438571347,0.37665,2654.3,2654.2,4.04808673]
[1727438572060,0.37664,2654.4,2654.2,4.42474673]
[1727438572562,2.8403828,2654.4,2654.2,4.42474673]
[1727438573175,0.37665,2654.3,2654.2,4.04808673]
[1727438574274,2.8403828,2654.4,2654.2,4.42474673]
[1727438574875,2.8403728,2654.5,2654.3,0.37665]
[1727438575073,2.8403728,2654.5,2654.3,1.01235]
[1727438575272,0.37663,2654.5,2654.4,3.97486143]
[1727438575860,0.37663,2654.5,2654.4,4.35149143]
[1727438576060,2.8403728,2654.5,2654.4,3.97486143]
[1727438577374,2.4637428,2654.5,2654.4,4.35149143]
[1727438577571,4.18641,2654.6,2654.5,0.37662]
[1727438577875,6.04909334,2654.6,2654.5,0.37662]
[1727438578181,5.67248334,2654.6,2654.4,5.46486143]
[1727438578367,6.04910334,2654.6,2654.5,0.589]
[1727438578676,6.04910334,2654.6,2654.5,4.65557251]
[1727438578866,2.84130334,2654.6,2654.5,4.65557251]
[1727438579067,0.37662,2654.6,2654.5,4.65557251]
[1727438579274,2.84146423,2654.6,2654.5,4.65557251]
[1727438579477,2.84146423,2654.6,2654.5,5.03219251]
[1727438579675,2.84146423,2654.6,2654.5,4.65557251]
[1727438580973,2.84148696,2654.6,2654.5,4.06657251]
[1727438581179,1.31814,2654.6,2654.5,4.06657251]
[1727438581377,0.37662,2654.5,2654.3,2.0911]
[1727438581679,0.37663,2654.4,2654.3,2.46774]
[1727438581974,0.37663,2654.4,2654.3,6.52763613]
[1727438582774,0.37663,2654.4,2654.3,10.29483613]
[1727438583276,2.84161082,2654.5,2654.4,0.37663]
[1727438583778,0.37662,2654.5,2654.4,4.43486489]
[1727438583974,0.37662,2654.5,2653.8,7.3388]
[1727438583975,8.66374082,2654.5,2653.8,7.3388]
[1727438584170,5.67303074,2654.3,2654.0,0.6113]
[1727438584377,0.37668,2654.1,2654.0,4.57857079]
[1727438584572,0.37669,2654.0,2653.9,3.96727079]
[1727438584772,0.37669,2654.0,2653.8,3.2078]
[1727438584773,0.97389,2654.0,2653.8,3.2078]
[1727438585077,0.97389,2654.0,2653.9,3.94665871]
[1727438585477,3.43912074,2654.0,2653.9,3.94665871]
[1727438586107,3.06243074,2654.0,2653.9,3.94665871]
[1727438586979,0.5972,2654.0,2653.9,3.94665871]
[1727438587381,3.06243074,2654.0,2653.9,3.94665871]
[1727438587675,0.5972,2654.0,2653.9,3.94665871]
[1727438588180,0.5972,2654.0,2653.9,4.32335871]
[1727438588380,3.04683074,2654.1,2653.9,4.32335871]
[1727438588888,3.42351074,2654.1,2653.9,4.32335871]
[1727438589074,3.04683074,2654.1,2653.9,4.32335871]
[1727438589483,3.42351074,2654.1,2653.9,4.32335871]
[1727438590280,3.04683074,2654.1,2654.0,0.37669]
[1727438590777,0.5816,2654.1,2654.0,0.40499]
[1727438590981,0.5816,2654.1,2654.0,4.72299726]
[1727438592077,0.5816,2654.1,2654.0,4.34630726]
[1727438592280,0.5816,2654.1,2654.0,4.72299726]
[1727438593784,0.5816,2654.1,2654.0,4.34630726]
[1727438595485,0.5816,2654.1,2654.0,4.72299726]
[1727438596078,0.5816,2654.1,2654.0,4.34630726]
[1727438596980,0.5816,2654.1,2654.0,4.72299726]
[1727438597185,0.5816,2654.1,2654.0,4.34630726]
[1727438598781,0.5816,2654.1,2654.0,4.72299726]
[1727438602996,0.5816,2654.1,2654.0,4.69469726]
[1727438605382,0.95828,2654.1,2654.0,4.31800726]
[1727438605593,3.42351074,2654.1,2654.0,4.31800726]
[1727438605792,0.95828,2654.1,2654.0,4.31800726]
[1727438606092,3.04683074,2654.1,2654.0,4.69469726]
[1727438606294,3.42351074,2654.1,2654.0,4.31800726]
[1727438608392,3.42666065,2654.1,2654.0,4.31800726]
[1727438608796,3.04998065,2654.1,2654.0,4.69469726]
[1727438609293,0.95828,2654.1,2654.0,4.31800726]
[1727438609695,0.5816,2654.1,2654.0,4.69469726]
[1727438609989,0.5816,2654.1,2654.0,8.46269726]
[1727438609990,2.46877794,2654.1,2654.0,8.46269726]
[1727438610194,3.05747794,2654.3,2654.2,0.37666]
[1727438610486,3.05747794,2654.3,2654.2,5.80468665]
[1727438610487,2.4687181,2654.3,2654.2,5.80468665]
[1727438610792,3.05911725,2654.4,2654.3,0.37665]
[1727438611187,3.05911725,2654.4,2654.3,4.31467665]
[1727438611691,3.05913594,2654.4,2654.3,4.31467665]
[1727438612488,0.96713,2654.4,2654.3,4.31467665]
[1727438612689,3.43575604,2654.4,2654.3,4.31467665]
[1727438612891,3.43570608,2654.4,2654.3,4.31467665]
[1727438613083,0.5905,2654.4,2654.3,4.31467665]
[1727438613398,3.05900791,2654.4,2654.3,4.31467665]
[1727438613582,3.43563791,2654.4,2654.3,4.31467665]
[1727438613782,0.96713,2654.4,2654.3,4.31467665]
[1727438614086,3.43558338,2654.4,2654.3,4.31467665]
[1727438614282,3.05893007,2654.4,2654.3,4.31467665]
[1727438614483,0.96713,2654.4,2654.3,4.31467665]
[1727438615393,3.43552414,2654.4,2654.3,4.31467665]
[1727438615591,3.05889414,2654.4,2654.3,4.31467665]
[1727438616003,3.43540287,2654.4,2654.3,4.31467665]
[1727438616294,3.05877287,2654.4,2654.3,4.31467665]
[1727438616697,3.43540287,2654.4,2654.3,4.31467665]
[1727438617297,0.96713,2654.4,2654.3,4.31467665]
[1727438617497,3.43537138,2654.4,2654.3,4.31467665]
[1727438619199,0.96713,2654.4,2654.3,4.31467665]
[1727438620691,0.96713,2654.4,2654.3,3.93802665]
[1727438620894,1.90872,2654.4,2654.3,3.93802665]
[1727438621803,1.53209,2654.4,2654.0,1.86668]
[1727438621998,2.84494662,2654.2,2654.0,1.86668]
[1727438622194,0.5765,2654.1,2654.0,1.86668]
[1727438622393,1.135,2654.1,2654.0,1.86668]
[1727438622598,1.135,2654.1,2654.0,5.82214288]
[1727438623106,3.60327662,2654.1,2654.0,5.82214288]
[1727438623403,1.135,2654.1,2654.0,5.82214288]
[1727438623608,1.135,2654.1,2654.0,5.44546288]
[1727438623824,3.97995662,2654.1,2654.0,5.44546288]
[1727438623999,1.51168,2654.1,2654.0,5.44546288]
[1727438624295,3.97995662,2654.1,2654.0,5.44546288]
[1727438625599,3.97995662,2654.1,2654.0,5.82215288]
[1727438625600,3.60327662,2654.1,2654.0,5.82215288]
[1727438627097,3.60327662,2654.1,2654.0,5.44546288]
[1727438627301,3.60327662,2654.1,2654.0,5.82215288]
[1727438630405,1.49,2654.5,2654.1,0.37668]
[1727438630406,2.46827662,2654.2,2654.1,0.37668]
[1727438630604,2.46827662,2654.3,2654.2,0.37666]
[1727438630801,2.46827662,2654.3,2654.2,6.17481657]
[1727438631002,2.46827662,2654.3,2654.2,1.86666]
[1727438632212,3.06037662,2654.4,2654.3,0.37665]
[1727438632506,0.5921,2654.4,2654.3,0.37665]
[1727438632808,3.06090819,2654.4,2654.3,0.92965]
[1727438633001,3.06086345,2654.4,2654.3,0.92965]
[1727438633303,0.5921,2654.4,2654.3,0.92965]
[1727438634110,3.06101269,2654.4,2654.3,0.92965]
[1727438634501,0.5921,2654.4,2654.3,0.92965]
[1727438634806,3.06100424,2654.4,2654.3,6.17805748]
[1727438635015,3.05850424,2654.5,2654.4,0.37663]
[1727438635210,3.05850424,2654.5,2654.4,1.86663]
[1727438635508,2.46890424,2654.5,2654.4,9.68438366]
[1727438639113,1.55439,2654.7,2654.5,0.37662]
[1727438639114,2.46890424,2654.6,2654.5,0.37662]
[1727438640113,1.1778,2654.7,2654.6,0.37661]
[1727438640314,1.55439,2654.7,2654.6,0.37661]
[1727438641017,1.1778,2654.7,2654.6,0.37661]
[1727438641216,1.55439,2654.7,2654.6,0.37661]
[1727438642819,0.5918,2654.7,2654.6,1.86661]
[1727438643022,3.05938803,2654.7,2654.6,6.23069015]
[1727438643514,0.5918,2654.7,2654.6,6.23069015]
[1727438644613,3.05938803,2654.7,2654.6,6.23069015]
[1727438645220,0.5918,2654.7,2654.6,6.23069015]
[1727438646612,3.43597803,2654.7,2654.6,6.23069015]
[1727438646821,0.5918,2654.7,2654.6,6.23069015]
[1727438648010,0.96839,2654.7,2654.6,5.85408015]
[1727438648623,0.96839,2654.7,2654.6,4.36408015]
[1727438648624,3.43597803,2654.7,2654.6,4.36408015]
[1727438648818,4.17619,2654.7,2654.6,4.36408015]
[1727438649423,5.11768,2654.7,2654.6,4.36408015]
[1727438650625,4.74109,2654.7,2654.3,2.41964]
[1727438650814,2.84355378,2654.5,2654.3,2.41964]
[1727438651022,0.5623,2654.4,2654.3,2.043]
[1727438651229,1.1712,2654.4,2654.3,2.043]
[1727438651523,1.54783,2654.4,2654.3,6.23452206]
[1727438651725,1.54783,2654.4,2654.3,4.74452206]
[1727438651924,4.01475378,2654.4,2654.3,4.74452206]
[1727438652228,4.01475378,2654.4,2654.3,6.23452206]
[1727438652923,3.63812378,2654.4,2654.3,6.23452206]
[1727438653616,2.46692378,2654.4,2654.3,6.61117206]
[1727438653827,0.37661,2654.6,2654.4,0.37662]
[1727438653828,3.44103378,2654.6,2654.4,0.37662]
[1727438654019,3.06442378,2654.6,2654.5,1.86662]
[1727438654213,3.06442378,2654.6,2654.5,6.22923464]
[1727438654414,2.46692378,2654.7,2654.6,0.37661]
[1727438654724,4.22072378,2655.0,2654.6,11.87786954]
[1727438654923,1.7538,2655.0,2654.9,1.49]
[1727438655223,4.2203976,2655.0,2654.9,5.77806954]
[1727438655416,1.7538,2655.0,2654.9,5.77806954]
[1727438655617,4.59706402,2655.0,2654.9,5.77806954]
[1727438655820,1.7538,2655.0,2654.9,5.77806954]
[1727438656017,2.13035,2655.0,2654.9,5.77806954]
[1727438656612,1.7538,2655.0,2654.9,5.77806954]
[1727438656818,1.7538,2655.0,2654.9,6.15462954]
[1727438657327,2.13035,2655.0,2654.9,4.28806954]
[1727438657717,0.37656,2654.9,2654.8,5.48076361]
[1727438657915,2.84276039,2654.9,2654.8,5.48076361]